Cogmind - Beta 11 X6 @@@ ROGUE MODE // 2021.07.23 @ 04:34:33 Player: A3 greed Plus Result: Establishing 0b11! Performance ------------- Evolutions (9) 4500 Regions Visited (34) 6800 Robots Destroyed (172) 860 Value Destroyed (7258) 7258 Prototype IDs (149) 2980 Alien Tech Used (5) 1000 Bonus (31555) 31555 TOTAL SCORE: 54953 Bonus ------- High Alert Combat Kills 272 Follower Combat Kills 2116 Network Hubs Disabled 800 Aligned with FarCom 300 Met Data Miner 300 Destroyed Z-Imprinter 1000 Met Zhirov 300 Found Hidden Lab 3000 Destroyed MAIN.C Guards 500 Met MAIN.C 5000 Destroyed MAIN.C Shell 5000 Destroyed MAIN.C 10000 Met Architect 300 Destroyed A8 300 Destroyed A6 400 Destroyed A5 500 Destroyed A4 700 Win 3000 Friendly Fire -2233 Cogmind --------- Core Integrity 597/1600 Matter 295/300 Energy 385/600 System Corruption 5% Temperature Cool (4) Movement Hovering (106) Ox1 Location 0b11 Command Parts ------- > --- POWER (1) -------- (None) > --- PROPULSION (8) --- Improved Gyrokinetic Inverter Improved Gyrokinetic Inverter > --- UTILITY (13) ----- Experimental Power Amplifier Large Storage Unit Advanced Energy Well Experimental Melee Analysis Suite Experimental Target Analyzer Improved Armor Integrity Analyzer Nanoactuators > --- WEAPON (4) ------- Plasma Lance Plasma Lance Plasma Lance > --- INVENTORY (15) --- Enhanced Flexi-carbon Leg Enhanced Flexi-carbon Leg Experimental Biometal Leg Desublimator Dimensional Manipulator Experimental Powered Armor Long-range Gatling Laser Neutron Cannon Neutron Cannon Neutron Cannon Plasma Lance Peak State ------------ > --- POWER ------------ Mini Fusion Reactor > --- PROPULSION ------- Improved Gyrokinetic Inverter Improved Gyrokinetic Inverter Cooled Antigrav System Cooled Antigrav System Combat Antigrav System Combat Antigrav System Combat Linear Gravjet Combat Linear Gravjet > --- UTILITY ---------- Desublimator Experimental Power Amplifier Experimental Power Amplifier Large Storage Unit Advanced Energy Well Experimental Melee Analysis Suite Experimental Melee Analysis Suite Experimental Target Analyzer Improved Armor Integrity Analyzer Nanoactuators Experimental Actuator Array Experimental Powered Armor Experimental Powered Armor > --- WEAPON ----------- Plasma Lance Plasma Lance Plasma Lance Plasma Lance > --- INVENTORY -------- Antimatter Reactor Enhanced Flexi-carbon Leg Enhanced Flexi-carbon Leg Experimental Biometal Leg Combat Antigrav System Dimensional Manipulator Layered Medium Armor Plating Heavy Regenerative Plating Neutron Cannon Neutron Cannon Neutron Cannon Neutron Cannon Plasma Lance Plasma Lance [Rating: 224] Favorites ----------- Power Micro Fission Core Engine Ion Engine Power Core Micro Fission Core Reactor Mini Fusion Reactor Propulsion Biomechanical Wings Treads Light Treads Leg Aluminum Leg Hover Unit Cooled Antigrav System Flight Unit Biomechanical Wings Utility Experimental Melee Analysis Suite Device Improved Fusion Compressor Storage Large Storage Unit Processor Experimental Melee Analysis Suite Hackware Improved Hacking Suite Protection Improved Utility Shielding Weapon Plasma Lance Energy Gun Small Laser Energy Cannon Particle Cannon Ballistic Gun Assault Rifle Launcher Rocket Launcher Special Weapon Plasma Cutter Slashing Weapon Axe Piercing Weapon Plasma Lance Build | -11 -10 -10 -10 -9 -8 -7 -7 -7 -7 -7 -6 -6 -6 -6 -6 -6 -5 -5 -5 -5 -5 -4 -4 -4 -4 -4 -4 -3 -3 -3 -2 -1 -1 -1 ------- Run | Scr Mat Min Exi Min Mat Fac Low Low Zio Dee Pro Fac Was Fac Low Dat Pro Fac Upp Upp Zhi Pro Fac Ext Cet Arc Hub Res Arm Lab Res Acc Com Ac0 Slots Evolved 18 | . . . . . 4 2 . . . . . 2 . . . . . 2 . . . . 2 . . . . 2 . . 2 2 . . Power . | . . . . . . . . . . . . . . . . . . . . . . . . . . . . . . . . . . . Propulsion 5 | . . . . . 4 . . . . . . . . . . . . . . . . . . . . . . . . . 1 . . . Utility 11 | . . . . . . 2 . . . . . 2 . . . . . 2 . . . . 2 . . . . 2 . . 1 . . . Weapon 2 | . . . . . . . . . . . . . . . . . . . . . . . . . . . . . . . . 2 . . Parts Attached 327 | 10 19 6 . 9 17 17 2 . 9 12 1 2 . 25 . 6 . 8 . . 7 1 2 12 3 2 1 3 9 6 23 22 38 55 Power 20 | 1 . . . . 1 2 . . 2 1 . . . 1 . . . 1 . . 1 1 . . 1 . 1 . 1 . . 1 3 2 Engine 5 | 1 . . . . 1 1 . . 1 . . . . . . . . . . . 1 . . . . . . . . . . . . . Core 10 | . . . . . . 1 . . 1 1 . . . 1 . . . 1 . . . 1 . . 1 . 1 . 1 . . 1 . . Reactor 5 | . . . . . . . . . . . . . . . . . . . . . . . . . . . . . . . . . 3 2 Propulsion 76 | 4 2 . . . 8 7 . . . . . . . 8 . . . 2 . . 1 . . 2 1 . . 1 2 1 3 9 7 18 Treads 7 | 2 2 . . . . . . . . . . . . . . . . . . . . . . 2 1 . . . . . . . . . Leg 3 | 2 . . . . . . . . . . . . . . . . . . . . 1 . . . . . . . . . . . . . Wheel . | . . . . . . . . . . . . . . . . . . . . . . . . . . . . . . . . . . . Hover 32 | . . . . . . . . . . . . . . . . . . . . . . . . . . . . . . . . 7 7 18 Flight 34 | . . . . . 8 7 . . . . . . . 8 . . . 2 . . . . . . . . . 1 2 1 3 2 . . Utility 175 | 2 10 6 . 1 5 7 2 . 4 8 . 2 . 12 . 2 . 5 . . 4 . 2 7 . 2 . 2 5 5 14 8 26 34 Device 66 | 1 6 6 . 1 3 2 1 . . 2 . . . 3 . 1 . 1 . . 1 . . 1 . . . 2 . 2 5 4 12 12 Storage 14 | . 2 . . . . . . . . 2 . 1 . 1 . . . . . . 1 . . . . . . . 1 . . . 2 4 Processor 22 | 1 2 . . . . 4 1 . 2 . . . . 4 . . . . . . . . . 2 . . . . . . 2 2 . 2 Hackware 14 | . . . . . . . . . . . . . . 2 . . . 3 . . 1 . 2 1 . 2 . . . 1 1 1 . . Protection 59 | . . . . . 2 1 . . 2 4 . 1 . 2 . 1 . 1 . . 1 . . 3 . . . . 4 2 6 1 12 16 Artifact . | . . . . . . . . . . . . . . . . . . . . . . . . . . . . . . . . . . . Weapon 56 | 3 7 . . 8 3 1 . . 3 3 1 . . 4 . 4 . . . . 1 . . 3 1 . . . 1 . 6 4 2 1 Energy Gun 2 | 2 . . . . . . . . . . . . . . . . . . . . . . . . . . . . . . . . . . Energy Cannon 2 | . . . . 1 1 . . . . . . . . . . . . . . . . . . . . . . . . . . . . . Ballistic Gun 17 | 1 5 . . 5 . . . . 3 2 . . . . . . . . . . . . . 1 . . . . . . . . . . Ballistic Cannon . | . . . . . . . . . . . . . . . . . . . . . . . . . . . . . . . . . . . Launcher 3 | . . . . 1 . . . . . . . . . 1 . 1 . . . . . . . . . . . . . . . . . . Special Weapon 11 | . 2 . . 1 1 . . . . 1 . . . 2 . 2 . . . . . . . . . . . . . . 1 . 1 . Impact Weapon . | . . . . . . . . . . . . . . . . . . . . . . . . . . . . . . . . . . . Slashing Weapon 2 | . . . . . 1 1 . . . . . . . . . . . . . . . . . . . . . . . . . . . . Piercing Weapon 19 | . . . . . . . . . . . 1 . . 1 . 1 . . . . 1 . . 2 1 . . . 1 . 5 4 1 1 Special Melee Weapon . | . . . . . . . . . . . . . . . . . . . . . . . . . . . . . . . . . . . Unidentified Prototypes 27 | . . . . . . 2 . . . 4 . . . 1 . . . 2 . . 4 . 2 . 1 . . . 1 3 . . 2 5 Corrupted Parts 1 | . . . . . . . . . . . . . . . . . . . . . . . . . . . . . . . . . 1 . System Corruption 3 | . . . . . . . . . . . . . . . . . . . . . . . . . . . . . . . . . 3 . Parts Lost 49 | . . . . . 1 . . 1 . . 1 . . . . . . . 1 1 . 3 . . . . . . . . 3 1 3 34 Power 5 | . . . . . . . . . . . . . . . . . . . . . . 1 . . . . . . . . . 1 . 3 Propulsion 20 | . . . . . 1 . . . . . . . . . . . . . 1 . . 1 . . . . . . . . 1 . 2 14 Utility 21 | . . . . . . . . 1 . . 1 . . . . . . . . 1 . 1 . . . . . . . . 1 . 1 15 Weapon 3 | . . . . . . . . . . . . . . . . . . . . . . . . . . . . . . . 1 . . 2 Highest Loss Streak 18 | . . . . . 1 . . 1 . . 1 . . . . . . . 1 1 . 2 . . . . . . . . 1 1 2 18 Average Slot Usage (%) 95 | . 99 100 100 100 96 95 92 91 92 100 96 80 80 99 100 99 100 99 98 86 81 85 73 85 90 89 85 78 92 93 95 98 98 93 Engine 3 | . 14 14 14 14 9 . . . . . . . . . . . . . . . 2 . . . . . . . . . . . . . Core 2 | . . . . . . 6 7 7 7 7 7 6 6 6 6 6 6 5 5 5 2 4 5 4 . . 5 4 4 4 4 3 . . Treads 7 | . 26 28 28 28 . . . . . . . . . . . . . . . . . . . 7 6 5 1 . . . . . . . Hover 6 | . . . . . . . . . . . . . . . . . . . . . . . . . . . . . . . . 5 29 27 Flight 19 | . . . . . 50 46 46 46 46 46 46 40 40 40 40 40 40 34 33 29 29 28 21 21 21 21 21 19 27 30 32 24 . . Device 9 | . 13 14 14 14 9 4 7 7 6 5 7 6 6 10 6 11 13 5 5 2 . . . . 5 3 . 1 . 2 2 9 20 16 Storage 6 | . 13 14 14 14 . . . . . 1 4 3 6 6 13 13 13 9 5 5 7 11 10 5 5 5 5 4 4 4 4 3 3 5 Processor 5 | . 1 . . . . 7 7 7 13 2 . . . 7 13 12 6 5 5 5 5 5 5 8 5 2 . . . . 2 5 11 14 Hackware 9 | . . . . . . . . . . . . . . 2 . . . 16 17 17 20 22 26 30 31 35 42 38 38 31 33 20 1 . Protection 7 | . . . . . 7 14 15 14 7 20 15 9 6 10 6 1 6 6 11 8 5 4 . 4 5 5 5 4 13 13 9 7 10 7 Ballistic Gun 7 | . 26 28 28 26 . . . . 5 14 8 6 6 4 . . . . . . . . . . 5 5 . . . . . . . . Piercing Weapon 4 | . . . . . . . . . . . 5 6 6 5 6 1 6 5 5 2 1 5 5 . 4 5 5 4 2 4 4 13 14 14 Naked Turns . | . . . . . . . . . . . . . . . . . . . . . . . . . . . . . . . . . . . Heaviest Build 104 | 9 31 31 31 35 17 18 16 16 20 25 23 29 29 37 33 38 38 39 39 39 29 30 22 25 24 24 24 28 36 40 47 57 104 104 Greatest Support 136 | 40 40 40 40 40 24 32 30 34 25 38 38 30 34 47 38 43 43 47 45 39 30 30 24 60 24 24 24 34 36 42 48 91 132 136 Greatest Overweight (x) 2 | . . . . . . . . . . . . . . . . . . 1 . . . . . 1 . . . . . . . . 2 1 Average Overweight (x) . | . . . . . . . . . . . . . . . . . . . . . . . . . . . . . . . . . . . Largest Inventory Capacity 15 | 5 15 15 15 15 15 5 5 5 5 5 5 10 10 10 10 10 10 10 10 10 10 10 10 10 10 10 10 10 15 15 15 15 15 15 Average Capacity 11 | 5 14 15 15 15 5 5 5 5 5 5 5 8 10 10 10 10 10 10 10 10 10 10 10 10 10 10 10 10 13 15 15 15 15 15 Most Carried 15 | 5 15 15 15 15 14 5 5 4 5 5 5 9 9 10 10 10 10 10 9 10 10 10 9 10 10 10 10 10 15 15 15 15 15 15 Average Carried 10 | 1 8 14 13 14 5 4 4 4 4 4 5 6 9 9 10 9 10 8 9 9 9 9 7 9 9 9 9 9 11 13 12 14 14 12 Final Capacity 15 | 5 15 15 15 15 5 5 5 5 5 5 5 10 10 10 10 10 10 10 10 10 10 10 10 10 10 10 10 10 15 15 15 15 15 15 Final Carried 15 | 5 14 15 14 14 5 4 4 4 5 5 5 9 9 10 10 10 10 9 9 10 10 9 7 10 9 10 10 10 14 15 13 15 14 11 Class Distribution -------------------- 25% | Mutant 18% | Wizard-Sprinter 15% | Machinist-Sprinter 11% | Scavenger-Sprinter 9% | Sprinter 8% | Wizard-Mutant 4% | Hacker-Sprinter Dominant Class ---------------- Mutant | -10/Materials Mutant | -10/Mines Mutant | -10/Exiles Mutant | -9/Mines Scavenger-Sprinter | -8/Materials Scavenger-Sprinter | -7/Factory Sprinter | -7/Lower Caves Sprinter | -7/Lower Caves Sprinter | -7/Zion Scavenger-Sprinter | -7/Deep Caves Scavenger-Sprinter | -6/Proximity Caves Scavenger-Sprinter | -6/Factory Sprinter | -6/Waste Sprinter | -6/Factory Sprinter | -6/Lower Caves Sprinter | -6/Data Miner Sprinter | -5/Proximity Caves Hacker-Sprinter | -5/Factory Hacker-Sprinter | -5/Upper Caves Hacker-Sprinter | -5/Upper Caves Hacker-Sprinter | -5/Zhirov Wizard-Sprinter | -4/Proximity Caves Wizard-Sprinter | -4/Factory Wizard-Mutant | -4/Extension Wizard-Mutant | -4/Cetus Wizard-Mutant | -4/Archives Wizard-Sprinter | -4/Hub_04(d) Wizard-Sprinter | -3/Research Wizard-Sprinter | -3/Armory Wizard-Sprinter | -3/Lab Wizard-Sprinter | -2/Research Wizard-Sprinter | -1/Access Machinist-Sprinter | -1/Command Machinist-Sprinter | -1/Access_0 Resources | -11 -10 -10 -10 -9 -8 -7 -7 -7 -7 -7 -6 -6 -6 -6 -6 -6 -5 -5 -5 -5 -5 -4 -4 -4 -4 -4 -4 -3 -3 -3 -2 -1 -1 -1 ----------- Run | Scr Mat Min Exi Min Mat Fac Low Low Zio Dee Pro Fac Was Fac Low Dat Pro Fac Upp Upp Zhi Pro Fac Ext Cet Arc Hub Res Arm Lab Res Acc Com Ac0 Matter Collected 6749 | 312 589 . . 242 226 202 42 20 90 178 21 . . 264 124 30 16 93 28 . . . . 195 50 10 . . 94 . 313 359 2157 1094 Remotely 283 | . 283 . . . . . . . . . . . . . . . . . . . . . . . . . . . . . . . . . Salvage Created 11414 | 140 578 . . 220 23 420 . 88 . 64 . . . 352 . 30 45 253 . . . . . 76 9 66 . . . . 731 1786 3931 2602 Parts 528 | 16 26 . . 14 6 30 . 4 . 5 . . . 19 . 6 2 8 . . . . . 2 . 5 . . . . 43 59 119 164 Haulers Intercepted 14 | . 2 . . . . 5 . . . . . . . . . . . 1 . . . . . . . . . . . . 1 5 . . Recyclers Shooed 10 | . 6 . . 2 . . . . . . . . . . . . . . . . . . . . . . . . . . 1 . 1 . Parts Field Recycled . | . . . . . . . . . . . . . . . . . . . . . . . . . . . . . . . . . . . Retrieved Matter . | . . . . . . . . . . . . . . . . . . . . . . . . . . . . . . . . . . . Parts Self-Destructed 8 | . . . . . . . 3 4 . . . . . . . . 1 . . . . . . . . . . . . . . . . . Prevented 1 | . . . . . . . . . . . . . . . 1 . . . . . . . . . . . . . . . . . . . Kills | -11 -10 -10 -10 -9 -8 -7 -7 -7 -7 -7 -6 -6 -6 -6 -6 -6 -5 -5 -5 -5 -5 -4 -4 -4 -4 -4 -4 -3 -3 -3 -2 -1 -1 -1 ------- Run | Scr Mat Min Exi Min Mat Fac Low Low Zio Dee Pro Fac Was Fac Low Dat Pro Fac Upp Upp Zhi Pro Fac Ext Cet Arc Hub Res Arm Lab Res Acc Com Ac0 Combat Hostiles Destroyed 90 | . 3 . . 8 6 1 . 2 . 1 . . . . . . 3 . . . . . . . . . . . . . 8 9 21 28 Melee 69 | . . . . . . 1 . 2 . . . . . . . . . . . . . . . . . . . . . . 8 9 21 28 Guns 12 | . 3 . . 8 . . . . . 1 . . . . . . . . . . . . . . . . . . . . . . . . AOE 9 | . . . . . 6 . . . . . . . . . . . 3 . . . . . . . . . . . . . . . . . Classes Destroyed 15 | 2 4 . . 1 . 2 . . . 2 . . . . . . . . . . . . . 1 . . . . . . 1 1 1 . Worker 20 | . 2 . . . . 1 . . . . . . . 1 . . . . . . . . . . . . . . . . 1 3 12 . Builder 5 | . . . . . . 1 . . . . . . . 1 . . . . . . . . . . . . . . . . . 3 . . Tunneler 6 | 4 . . . . . . . . . . . . . . . . . . . . . . . . . . . . . . 1 1 . . Hauler 14 | . 2 . . . . 5 . . . . . . . . . . . 1 . . . . . . . . . . . . 1 5 . . Recycler 20 | 1 4 . . 1 . . . . . . . . . 2 . . . 1 . . . . . . . . . . . . 1 3 7 . Watcher 14 | . 2 . . . . 3 . . . . . . . 2 . . . . . . . . . . . . . . . . 1 4 2 . Swarmer 36 | . 3 . . 7 6 . . . . . . . . . . . 3 . . . . . . . . . . . . . 4 5 8 . Grunt 4 | . . . . 1 . . . . . . . . . . . . . . . . . . . . . . . . . . . 1 2 . Sentry 5 | . . . . . . . . . . . . . . . . . . . . . . . . . . . . . . . . 3 2 . Hunter 5 | . . . . . . . . . . . . . . . . . . . . . . . . . . . . . . . 2 . 3 . Programmer 8 | . . . . . . 1 . 2 . . . . . . . . . . . . . . . . . . . . . . 2 . 3 . Enhanced Grunt 16 | . . . . . . . . . . . . . . . . . . . . . . . . . . . . . . . . . . 16 Enhanced Sentry 2 | . . . . . . . . . . . . . . . . . . . . . . . . . . . . . . . . . . 2 Enhanced Hunter 6 | . . . . . . . . . . . . . . . . . . . . . . . . . . . . . . . . . . 6 Alpha 7 1 | . . . . . . . . . . . . . . . . . . . . . . . . . . . . . . . . . 1 . Z-Technician 1 | . . . . . . . . . . 1 . . . . . . . . . . . . . . . . . . . . . . . . Z-Light 1 | . . . . . . . . . . 1 . . . . . . . . . . . . . . . . . . . . . . . . Savage 1 | . . . . . . . . . . . . . . . . . . . . . . . . 1 . . . . . . . . . . Best Kill Streak 10 | 5 3 . . 4 3 4 . 1 . 1 . . . 2 . . 3 1 . . . . . . . . . . . . 6 9 10 6 Combat Bots Only 9 | . 3 . . 4 3 1 . 1 . 1 . . . . . . 3 . . . . . . . . . . . . . 4 5 9 6 Max Kills in Single Turn 3 | 2 1 . . 1 3 1 . 1 . 1 . . . 1 . 1 3 1 . . . . . 1 1 . . . . . 1 1 1 1 Gunslinging . | . . . . . . . . . . . . . . . . . . . . . . . . . . . . . . . . . . . Exploded 3 | . . . . . 3 . . . . . . . . . . . 3 . . . . . . . . . . . . . . . . . Melee 1 | . . . . . . 1 . 1 . . . . . . . . . . . . . . . . . . . . . . 1 1 1 1 Uniques/NPCs Destroyed 9 | . . . . . . . . . . 1 . . . . . 1 . . . . . . . . 1 . . . . . . . 2 4 Z-Imprinter (-7/Deep Caves) Data Miner (-6/Data Miner) A7 (-4/Cetus) MAIN.C Shell (-1/Command) MAIN.C (-1/Command) A8 (-1/Access_0) A6 (-1/Access_0) A5 (-1/Access_0) A4 (-1/Access_0) Combat | -11 -10 -10 -10 -9 -8 -7 -7 -7 -7 -7 -6 -6 -6 -6 -6 -6 -5 -5 -5 -5 -5 -4 -4 -4 -4 -4 -4 -3 -3 -3 -2 -1 -1 -1 -------- Run | Scr Mat Min Exi Min Mat Fac Low Low Zio Dee Pro Fac Was Fac Low Dat Pro Fac Upp Upp Zhi Pro Fac Ext Cet Arc Hub Res Arm Lab Res Acc Com Ac0 Damage Taken 13165 | . 38 . . 171 179 131 . 147 . 270 20 . . 37 105 . 257 . 41 127 . 222 . 68 25 . 17 266 . . 1542 379 1014 8109 Core 1578 | . . . . 26 27 27 . 14 . . . . . . 18 . 34 . . . . . . . . . . 103 . . 508 60 31 730 Absorbed by Shields 3362 | . . . . 75 . . . . . . . . . . . . . . . . . . . . 24 . . . . . 51 36 360 2816 Core Remaining (%) 85 | 100 . . . 89 95 . . . . . 94 . . . . . 93 . . . . 100 . . . . 100 . . 85 64 . . 37 Volleys Fired 127 | 12 50 . . 20 4 . . . . 26 . . . 2 . 9 1 . . . . . . . . . . . . . . . 3 . Largest 2 | 2 2 . . 2 1 . . . . 2 . . . 1 . 2 1 . . . . . . . . . . . . . . . 1 . Hottest 100 | 60 100 . . 100 100 . . . . 56 . . . 28 . 40 36 . . . . . . . . . . . . . . . . . Shots Fired 237 | 24 99 . . 38 4 . . . . 51 . . . 2 . 15 1 . . . . . . . . . . . . . . . 3 . Gun 211 | 24 98 . . 37 . . . . . 50 . . . 2 . . . . . . . . . . . . . . . . . . . . Cannon . | . . . . . . . . . . . . . . . . . . . . . . . . . . . . . . . . . . . Launcher 4 | . . . . . 3 . . . . . . . . . . . 1 . . . . . . . . . . . . . . . . . Special 22 | . 1 . . 1 1 . . . . 1 . . . . . 15 . . . . . . . . . . . . . . . . 3 . Kinetic 194 | 12 93 . . 37 . . . . . 50 . . . 2 . . . . . . . . . . . . . . . . . . . . Thermal 34 | 12 6 . . 1 1 . . . . . . . . . . 14 . . . . . . . . . . . . . . . . . . Explosive 4 | . . . . . 3 . . . . . . . . . . . 1 . . . . . . . . . . . . . . . . . Electromagnetic . | . . . . . . . . . . . . . . . . . . . . . . . . . . . . . . . . . . . Robot Hit Streak 10 | 4 10 . . 4 . . . . . 6 . . . . . 4 2 . . . . . . . . . . . . . . . 3 . Robot Miss Streak 4 | 1 4 . . 2 . . . . . 3 . . . . . 3 . . . . . . . . . . . . . . . . 1 . Penetration Max . | . . . . . . . . . . . . . . . . . . . . . . . . . . . . . . . . . . . Secondary Targets 1 | . . . . 1 . . . . . . . . . . . . . . . . . . . . . . . . . . . . . . Max Gunslinging Chain 1 | . . . . 1 . . . . . . . . . . . . . . . . . . . . . . . . . . . . . . Shots Hit Robots 713 | 15 57 . . 21 . 30 . 9 . 15 . . . 6 . 8 1 2 . . . . . 1 3 4 . . . . 25 55 122 339 Core Hits 354 | 7 22 . . 8 6 11 . 2 . 4 . . . 6 . 3 3 2 . . . . . 1 2 2 . . . . 15 29 59 172 Critical Kills . | . . . . . . . . . . . . . . . . . . . . . . . . . . . . . . . . . . . Critical Parts Destroyed . | . . . . . . . . . . . . . . . . . . . . . . . . . . . . . . . . . . . Critical Strikes 14 | . . . . . . 2 . . . . . . . . . . . . . . . . . . . . . . . . . . 4 8 Sever 2 | . . . . . . 2 . . . . . . . . . . . . . . . . . . . . . . . . . . . . Puncture 12 | . . . . . . . . . . . . . . . . . . . . . . . . . . . . . . . . . 4 8 Melee Attacks 888 | . . . . . 14 57 . 17 . . 1 . . 20 1 . . 7 . 1 . . . 1 3 7 3 8 11 49 59 84 183 362 Impact . | . . . . . . . . . . . . . . . . . . . . . . . . . . . . . . . . . . . Slashing 88 | . . . . . 14 57 . 17 . . . . . . . . . . . . . . . . . . . . . . . . . . Piercing 800 | . . . . . . . . . . . 1 . . 20 1 . . 7 . 1 . . . 1 3 7 3 8 11 49 59 84 183 362 Sneak Attacks 67 | . . . . . . 7 . 1 . . . . . 4 . . . 2 . . . . . 1 3 . . . . . 10 18 21 . Combat Hostiles 7 | . . . . . . . . 1 . . . . . . . . . . . . . . . . . . . . . . 3 1 2 . Follow-up Attacks 233 | . . . . . . . . . . . . . . . . . . . . . . . . . . . . . . . . 14 44 175 Damage Inflicted 42117 | 169 754 . . 288 309 2016 . 657 . 244 . . . 505 . 81 263 187 . . . . . 81 226 344 . . . . 2305 5335 13039 15314 Guns 1438 | 159 740 . . 284 . . . . . 244 . . . 11 . . . . . . . . . . . . . . . . . . . . Cannons . | . . . . . . . . . . . . . . . . . . . . . . . . . . . . . . . . . . . Explosions 572 | . . . . . 309 . . . . . . . . . . . 263 . . . . . . . . . . . . . . . . . Melee 39998 | . . . . . . 2016 . 657 . . . . . 494 . . . 187 . . . . . 81 226 344 . . . . 2305 5335 13039 15314 Ramming 28 | 10 14 . . 4 . . . . . . . . . . . . . . . . . . . . . . . . . . . . . . Kinetic 1307 | 61 707 . . 284 . . . . . 244 . . . 11 . . . . . . . . . . . . . . . . . . . . Thermal 212 | 98 33 . . . . . . . . . . . . . . 81 . . . . . . . . . . . . . . . . . . Explosive 572 | . . . . . 309 . . . . . . . . . . . 263 . . . . . . . . . . . . . . . . . Electromagnetic . | . . . . . . . . . . . . . . . . . . . . . . . . . . . . . . . . . . . Impact . | . . . . . . . . . . . . . . . . . . . . . . . . . . . . . . . . . . . Slashing 2673 | . . . . . . 2016 . 657 . . . . . . . . . . . . . . . . . . . . . . . . . . Piercing 37325 | . . . . . . . . . . . . . . 494 . . . 187 . . . . . 81 226 344 . . . . 2305 5335 13039 15314 Highest Corruption 5 | . 1 1 1 1 . 3 3 4 4 . . . . . . . . . . 1 1 1 . . . . . . . . 4 . 3 5 Average Corruption 2 | . 1 1 1 1 . 2 3 3 4 . . . . . . . . . . 1 1 1 . . . . . . . . 3 . 1 3 Corruption Purged 5 | . . . . . . . . . . . . . . . . . . . . . . . . . . . . . . . . . 5 . Effects 58 | . 5 1 3 2 . 2 . 4 1 . . . . . . . . . . . . . . . . . . . . . 10 . 14 16 Message Errors 16 | . 2 1 2 1 . . . 1 . . . . . . . . . . . . . . . . . . . . . . 2 . 3 4 Matter Fused 13 | . . . . . . 1 . 2 . . . . . . . . . . . . . . . . . . . . . . 4 . 1 5 Heat Flow Errors 6 | . . . . . . 1 . 1 . . . . . . . . . . . . . . . . . . . . . . 1 . 2 1 Energy Discharges 9 | . 1 . . . . . . . . . . . . . . . . . . . . . . . . . . . . . 3 . 2 3 Data Loss (minor) 12 | . 2 . 1 . . . . . 1 . . . . . . . . . . . . . . . . . . . . . . . 6 2 Data Loss (major) 1 | . . . . . . . . . . . . . . . . . . . . . . . . . . . . . . . . . . 1 Weapon Failures 1 | . . . . 1 . . . . . . . . . . . . . . . . . . . . . . . . . . . . . . Overload Shots . | . . . . . . . . . . . . . . . . . . . . . . . . . . . . . . . . . . . Overflow Damage 3523 | . . . . . . 62 . 250 . . . . . . . . 14 . . . . . . . . 69 . . . . 560 774 1686 108 Projectiles . | . . . . . . . . . . . . . . . . . . . . . . . . . . . . . . . . . . . Explosions 14 | . . . . . . . . . . . . . . . . . 14 . . . . . . . . . . . . . . . . . Melee 3509 | . . . . . . 62 . 250 . . . . . . . . . . . . . . . . . 69 . . . . 560 774 1686 108 Knockbacks . | . . . . . . . . . . . . . . . . . . . . . . . . . . . . . . . . . . . Impact . | . . . . . . . . . . . . . . . . . . . . . . . . . . . . . . . . . . . Kinetic . | . . . . . . . . . . . . . . . . . . . . . . . . . . . . . . . . . . . Secondary . | . . . . . . . . . . . . . . . . . . . . . . . . . . . . . . . . . . . Self-Inflicted Damage . | . . . . . . . . . . . . . . . . . . . . . . . . . . . . . . . . . . . Shots . | . . . . . . . . . . . . . . . . . . . . . . . . . . . . . . . . . . . Rammed 6 | . 5 . . 1 . . . . . . . . . . . . . . . . . . . . . . . . . . . . . . Targets Rammed 8 | 2 5 . . 1 . . . . . . . . . . . . . . . . . . . . . . . . . . . . . . Kicked 2 | 2 . . . . . . . . . . . . . . . . . . . . . . . . . . . . . . . . . . Crushed . | . . . . . . . . . . . . . . . . . . . . . . . . . . . . . . . . . . . Highest Temperature 256 | 20 20 . . . 56 190 . 144 . 143 118 . 78 . 48 . . 42 . . . . . . . . . . . . 153 . 194 256 Average Temperature 37 | 9 9 . . . 17 46 . 61 . 54 58 . 57 . 22 . . 18 . . . . . . . . . . . . 92 . 67 92 Received Heat Transfer 1424 | . . . . . 36 42 . . . 66 27 . . 21 36 . . . . 9 . 30 . . . . 9 . . . 87 36 18 1007 Siege Activations . | . . . . . . . . . . . . . . . . . . . . . . . . . . . . . . . . . . . Robots Corrupted . | . . . . . . . . . . . . . . . . . . . . . . . . . . . . . . . . . . . Combat Hostiles . | . . . . . . . . . . . . . . . . . . . . . . . . . . . . . . . . . . . Parts Fried 1 | . . . . . . . . . . . . . . . . . . . . . . . . . . . . . . . . . 1 . Impact Corruptions . | . . . . . . . . . . . . . . . . . . . . . . . . . . . . . . . . . . . Robots Melted . | . . . . . . . . . . . . . . . . . . . . . . . . . . . . . . . . . . . Combat Hostiles . | . . . . . . . . . . . . . . . . . . . . . . . . . . . . . . . . . . . Parts Melted . | . . . . . . . . . . . . . . . . . . . . . . . . . . . . . . . . . . . Heat Transferred 559 | 225 75 . . . . . . . . . . . . . . 259 . . . . . . . . . . . . . . . . . . Parts Sabotaged . | . . . . . . . . . . . . . . . . . . . . . . . . . . . . . . . . . . . Parts Stolen . | . . . . . . . . . . . . . . . . . . . . . . . . . . . . . . . . . . . Parts Stripped . | . . . . . . . . . . . . . . . . . . . . . . . . . . . . . . . . . . . Power Chain Reactions . | . . . . . . . . . . . . . . . . . . . . . . . . . . . . . . . . . . . Missiles Intercepted . | . . . . . . . . . . . . . . . . . . . . . . . . . . . . . . . . . . . Alert | -11 -10 -10 -10 -9 -8 -7 -7 -7 -7 -7 -6 -6 -6 -6 -6 -6 -5 -5 -5 -5 -5 -4 -4 -4 -4 -4 -4 -3 -3 -3 -2 -1 -1 -1 ------- Run | Scr Mat Min Exi Min Mat Fac Low Low Zio Dee Pro Fac Was Fac Low Dat Pro Fac Upp Upp Zhi Pro Fac Ext Cet Arc Hub Res Arm Lab Res Acc Com Ac0 Peak Influence 824 | 25 92 10 . 192 377 306 . . . . . 28 39 587 . . . 819 . . . . 6 161 213 117 250 158 482 . 824 353 506 . Initial 187 | . 16 10 . . . 171 . . . . . 28 9 27 . . . 44 . . . . 6 2 89 69 40 120 82 . . 187 144 . Average 145 | 16 30 10 . 145 98 215 . . . . . 28 18 304 . . . 330 . . . . 6 58 190 89 95 49 80 . 298 183 324 . Maximum Alert Level 3 | . . . . . 1 1 . . . . . . . 2 . . . 3 . . . . . . 1 . 1 . 2 . 3 1 2 . Low Security (%) 62 | 100 100 100 . 100 91 33 . . . . . 100 100 45 . . . 58 . . . . 100 100 30 100 83 100 96 . 41 40 5 . Level 1 14 | . . . . . 8 66 . . . . . . . 12 . . . 9 . . . . . . 69 . 16 . 1 . 25 59 14 . Level 2 21 | . . . . . . . . . . . . . . 42 . . . . . . . . . . . . . . 1 . 25 . 79 . Level 3 1 | . . . . . . . . . . . . . . . . . . 30 . . . . . . . . . . . . 7 . . . Level 4 . | . . . . . . . . . . . . . . . . . . . . . . . . . . . . . . . . . . . Level 5 . | . . . . . . . . . . . . . . . . . . . . . . . . . . . . . . . . . . . High Security . | . . . . . . . . . . . . . . . . . . . . . . . . . . . . . . . . . . . Max Security . | . . . . . . . . . . . . . . . . . . . . . . . . . . . . . . . . . . . Squads Dispatched 27 | . . . . . 1 2 . . . . . . . 4 . . . 3 . . . . . . . . 6 1 . . 8 1 1 . Investigation 9 | . . . . . . . . . . . . . . 1 . . . 2 . . . . . . . . 5 . . . 1 . . . Extermination 5 | . . . . . . 1 . . . . . . . 1 . . . . . . . . . . . . . . . . 2 . 1 . Reinforcement 8 | . . . . . 1 1 . . . . . . . 1 . . . . . . . . . . . . 1 1 . . 2 1 . . Assault 3 | . . . . . . . . . . . . . . 1 . . . . . . . . . . . . . . . . 2 . . . Garrison 2 | . . . . . . . . . . . . . . . . . . 1 . . . . . . . . . . . . 1 . . . Intercept . | . . . . . . . . . . . . . . . . . . . . . . . . . . . . . . . . . . . Construction Impeded 1 | . . . . . . . . . . . . . . . . . . . . . . . . . . . . . . . 1 . . . Haulers Reinforced 1 | . . . . . . 1 . . . . . . . . . . . . . . . . . . . . . . . . . . . . Active Scanning Responses . | . . . . . . . . . . . . . . . . . . . . . . . . . . . . . . . . . . . Cargo Convoy Interrupts . | . . . . . . . . . . . . . . . . . . . . . . . . . . . . . . . . . . . Stealth | -11 -10 -10 -10 -9 -8 -7 -7 -7 -7 -7 -6 -6 -6 -6 -6 -6 -5 -5 -5 -5 -5 -4 -4 -4 -4 -4 -4 -3 -3 -3 -2 -1 -1 -1 --------- Run | Scr Mat Min Exi Min Mat Fac Low Low Zio Dee Pro Fac Was Fac Low Dat Pro Fac Upp Upp Zhi Pro Fac Ext Cet Arc Hub Res Arm Lab Res Acc Com Ac0 Distress Signals 37 | . . . . . . . . . . . . . . . . . . . . . . . . 1 1 . . 3 . . 8 . 24 . Communications Jammed . | . . . . . . . . . . . . . . . . . . . . . . . . . . . . . . . . . . . Distress Signals . | . . . . . . . . . . . . . . . . . . . . . . . . . . . . . . . . . . . Times Spotted 363 | . 11 . . 7 17 12 . 6 . 6 4 . 2 22 10 . 8 5 11 4 . 9 . 11 4 . 8 15 . . 82 21 30 58 Peak Tracking Total 23 | . 3 . . 3 8 4 . 4 . 3 4 . 2 5 10 . 8 4 6 4 . 7 . 5 4 . 9 9 . . 23 8 7 5 Tactical Retreats 41 | . . . . . 3 . . 1 . . 2 . . 5 1 . . 2 2 1 . 1 . . . . . 3 . . 18 1 1 . Traps | -11 -10 -10 -10 -9 -8 -7 -7 -7 -7 -7 -6 -6 -6 -6 -6 -6 -5 -5 -5 -5 -5 -4 -4 -4 -4 -4 -4 -3 -3 -3 -2 -1 -1 -1 ------- Run | Scr Mat Min Exi Min Mat Fac Low Low Zio Dee Pro Fac Was Fac Low Dat Pro Fac Upp Upp Zhi Pro Fac Ext Cet Arc Hub Res Arm Lab Res Acc Com Ac0 Traps Triggered 23 | . 1 . . . . . . . . . . 1 . 2 . . . 1 . . . . . 1 . . . . . . 4 3 10 . Indirectly . | . . . . . . . . . . . . . . . . . . . . . . . . . . . . . . . . . . . Trap Hack Attempts . | . . . . . . . . . . . . . . . . . . . . . . . . . . . . . . . . . . . Triggered . | . . . . . . . . . . . . . . . . . . . . . . . . . . . . . . . . . . . Disarmed 9 | . . . . . . . . . . . . . . . . . . . . . . . . 9 . . . . . . . . . . Reprogrammed 4 | . . . . . . . . . . . . . . . . . . . . . . . . . . . . . . . 4 . . . Reused 2 | . . . . . . . . . . . . . . . . . . . . . . . . . . . . . . . 2 . . . Traps Extracted . | . . . . . . . . . . . . . . . . . . . . . . . . . . . . . . . . . . . Installed . | . . . . . . . . . . . . . . . . . . . . . . . . . . . . . . . . . . . Triggered 6 | . . . . 1 . . . . . . . . . . 2 . . . . . . . . . . . 1 . . . 2 . . . Machines | -11 -10 -10 -10 -9 -8 -7 -7 -7 -7 -7 -6 -6 -6 -6 -6 -6 -5 -5 -5 -5 -5 -4 -4 -4 -4 -4 -4 -3 -3 -3 -2 -1 -1 -1 ---------- Run | Scr Mat Min Exi Min Mat Fac Low Low Zio Dee Pro Fac Was Fac Low Dat Pro Fac Upp Upp Zhi Pro Fac Ext Cet Arc Hub Res Arm Lab Res Acc Com Ac0 Machines Disabled 21 | . . . . . . 1 . . . 2 . . . . . . . . . . . . . 1 1 2 1 . . 6 1 . 2 4 Max in Single Turn 1 | . . . . . . 1 . . . . . . . . . . . . . . . . . . . 1 . . . 1 1 . 1 1 Garrison Access 4 | . . . . . . . . . . . . . . 1 . . . 1 . . . . . . . . . 1 . . 1 . . . Network Hub 4 | . . . . . . . . . . . . . . . . . . . . . . . . . . . 4 . . . . . . . Machines Sabotaged 4 | . . . . . . . . . . . . . . . . . . . . . . . . . . . 4 . . . . . . . Garrisons Compromised . | . . . . . . . . . . . . . . . . . . . . . . . . . . . . . . . . . . . Overloaded Fab Kills . | . . . . . . . . . . . . . . . . . . . . . . . . . . . . . . . . . . . Fab Network Shutdowns 2 | . . . . . . . . . . . . . . . . . . 1 . . . . . . . . . . 1 . . . . . Hacking | -11 -10 -10 -10 -9 -8 -7 -7 -7 -7 -7 -6 -6 -6 -6 -6 -6 -5 -5 -5 -5 -5 -4 -4 -4 -4 -4 -4 -3 -3 -3 -2 -1 -1 -1 --------- Run | Scr Mat Min Exi Min Mat Fac Low Low Zio Dee Pro Fac Was Fac Low Dat Pro Fac Upp Upp Zhi Pro Fac Ext Cet Arc Hub Res Arm Lab Res Acc Com Ac0 Machines Accessed 93 | . 2 . 2 1 3 7 . . . . . . . 12 . 3 . 5 . . 4 . 1 13 . . 6 2 2 . 14 11 5 . Terminals 57 | . 2 . . 1 3 3 . . . . . . . 7 . . . 1 . . . . 1 13 . . 6 1 1 . 7 7 4 . Fabricators 10 | . . . . . . 1 . . . . . . . 1 . . . 2 . . . . . . . . . . 1 . 2 3 . . Repair Stations 4 | . . . . . . 1 . . . . . . . 1 . . . . . . . . . . . . . . . . 1 . 1 . Recycling Units 3 | . . . . . . 1 . . . . . . . . . . . 1 . . . . . . . . . . . . 1 . . . Scanalyzers 3 | . . . . . . . . . . . . . . 1 . . . . . . . . . . . . . . . . 1 1 . . Garrison Access 7 | . . . . . . 1 . . . . . . . 2 . . . 1 . . . . . . . . . 1 . . 2 . . . Total Hacks 453 | . 7 . 2 4 6 11 . . . . . . . 36 . 25 . 17 . . 17 . 10 41 . . 26 20 27 . 109 75 20 . Successful 361 | . 4 . 2 1 4 4 . . . . . . . 26 . 25 . 11 . . 17 . 5 38 . . 26 19 27 . 90 50 12 . Failed 91 | . 3 . . 3 2 7 . . . . . . . 10 . . . 6 . . . . 5 2 . . . 1 . . 19 25 8 . Catastrophic 15 | . . . . 1 . 3 . . . . . . . 2 . . . 1 . . . . 1 . . . . . . . 3 4 . . Database Lockouts 1 | . . . . . . . . . . . . . . . . . . . . . . . . 1 . . . . . . . . . . Manual 192 | . 5 . 1 4 1 1 . . 5 . . . . 14 . . . 9 . . . . 8 17 1 . 12 4 5 . 62 38 5 . Terminals 296 | . 7 . . 4 6 6 . . . . . . . 20 . . . 5 . . . . 10 41 . . 26 19 8 . 75 54 15 . Fabricators 64 | . . . . . . 2 . . . . . . . 2 . . . 8 . . . . . . . . . . 19 . 13 20 . . Repair Stations 21 | . . . . . . 1 . . . . . . . 4 . . . . . . . . . . . . . . . . 11 . 5 . Recycling Units 3 | . . . . . . 1 . . . . . . . . . . . 1 . . . . . . . . . . . . 1 . . . Scanalyzers 11 | . . . . . . . . . . . . . . 6 . . . . . . . . . . . . . . . . 4 1 . . Garrison Access 14 | . . . . . . 1 . . . . . . . 4 . . . 3 . . . . . . . . . 1 . . 5 . . . Terminal Hacks 239 | . 3 . 2 1 3 1 . . . . . . . 9 . 25 . 3 . . 17 . 5 35 . . 20 16 8 . 52 32 7 . Record 13 | . . . 1 . . . . . . . . . . . . 6 . 1 . . 5 . . . . . . . . . . . . . Part Schematic 38 | . . . . . . . . . . . . . . 1 . 10 . . . . 4 . 2 5 . . . 3 2 . 10 1 . . Robot Schematic 10 | . . . . 1 . . . . . . . . . . . 6 . . . . . . . 1 . . . . . . 2 . . . Robot Analysis 8 | . 2 . . . . . . . . . . . . . . . . . . . 4 . . . . . . 1 . . 1 . . . Prototype ID Bank 45 | . 1 . . . 1 . . . . . . . . . . 3 . . . . 4 . 1 9 . . 2 1 . . 11 12 . . Open Door 12 | . . . . . . . . . . . . . . . . . . . . . . . . 8 . . . . . . . 3 1 . Level Access Points 6 | . . . . . . . . . . . . . . 1 . . . . . . . . . 1 . . 1 1 . . 1 1 . . Branch Access Points 5 | . . . . . . . . . . . . . . 1 . . . 1 . . . . . . . . . 1 . . 1 1 . . Emergency Access Points 5 | . . . . . . . . . . . . . . . . . . . . . . . . . . . 4 . . . 1 . . . Machine Index 5 | . . . . . . . . . . . . . . . . . . . . . . . . 1 . . 1 1 . . 1 1 . . Terminal Index 1 | . . . . . . . . . . . . . . . . . . . . . . . 1 . . . . . . . . . . . Fabricator Index 5 | . . . . . . . . . . . . . . 1 . . . . . . . . 1 . . . . 1 1 . . 1 . . Repair Station Index 3 | . . . . . . . . . . . . . . 1 . . . . . . . . . . . . 1 . . . . . 1 . Garrison Index 1 | . . . . . . . . . . . . . . . . . . . . . . . . . . . . . 1 . . . . . Alert Level 12 | . . . . . . . . . . . . . . 1 . . . . . . . . . 1 . . 1 1 1 . 4 1 2 . Unreport Threat 21 | . . . . . . . . . . . . . . . . . . . . . . . . 2 . . 3 2 2 . 7 4 1 . Locate Traps 10 | . . . . . . . . . . . . . . 1 . . . . . . . . . 2 . . 1 1 1 . 1 2 1 . Disarm Traps 3 | . . . . . . . . . . . . . . . . . . . . . . . . 3 . . . . . . . . . . Reprogram Traps 1 | . . . . . . . . . . . . . . . . . . . . . . . . . . . . . . . 1 . . . Dispatch Records 2 | . . . . . . . . . . . . . . . . . . . . . . . . . . . 1 . . . 1 . . . Maintenance Status 1 | . . . . . . . . . . . . . . . . . . . . . . . . 1 . . . . . . . . . . Surveillance Status 2 | . . . . . . . . . . . . . . . . . . . . . . . . . . . . 1 . . 1 . . . Patrol Status 6 | . . . . . 1 . . . . . . . . . . . . . . . . . . 1 . . 1 . . . . 2 1 . Garrison Status 1 | . . . . . . . . . . . . . . . . . . . . . . . . . . . 1 . . . . . . . Recall Investigation 1 | . . . . . . . . . . . . . . . . . . . . . . . . . . . 1 . . . . . . . Recall Extermination 2 | . . . . . . . . . . . . . . . . . . . . . . . . . . . . . . . 2 . . . Recall Reinforcements 1 | . . . . . . . . . . . . . . . . . . . . . . . . . . . . . . . 1 . . . Hauler Manifests 6 | . . . . . 1 1 . . . . . . . 1 . . . . . . . . . . . . . 1 . . 1 1 . . Registered Components 4 | . . . . . . . . . . . . . . 1 . . . 1 . . . . . . . . . . . . 1 1 . . Registered Prototypes 2 | . . . . . . . . . . . . . . . . . . . . . . . . . . . . 1 . . 1 . . . Zone Layout 6 | . . . . . . . . . . . . . . . . . . . . . . . . . . . 2 . . . 3 1 . . EX-Prototype ID Bank 1 | . . . 1 . . . . . . . . . . . . . . . . . . . . . . . . . . . . . . . Fabricator Hacks 43 | . . . . . . 1 . . . . . . . 2 . . . 4 . . . . . . . . . . 16 . 9 11 . . Network Status 2 | . . . . . . . . . . . . . . . . . . . . . . . . . . . . . 1 . . 1 . . Load Schematic 17 | . . . . . . 1 . . . . . . . 1 . . . 2 . . . . . . . . . . 5 . 4 4 . . Build 24 | . . . . . . . . . . . . . . 1 . . . 2 . . . . . . . . . . 10 . 5 6 . . Repair Station Hacks 19 | . . . . . . 1 . . . . . . . 3 . . . . . . . . . . . . . . . . 11 . 4 . Scan Component 8 | . . . . . . . . . . . . . . 1 . . . . . . . . . . . . . . . . 5 . 2 . Repair 8 | . . . . . . . . . . . . . . 1 . . . . . . . . . . . . . . . . 5 . 2 . Refit 3 | . . . . . . 1 . . . . . . . 1 . . . . . . . . . . . . . . . . 1 . . . Recycling Unit Hacks 1 | . . . . . . 1 . . . . . . . . . . . . . . . . . . . . . . . . . . . . Retrieve Components 1 | . . . . . . 1 . . . . . . . . . . . . . . . . . . . . . . . . . . . . Scanalyzer 11 | . . . . . . . . . . . . . . 6 . . . . . . . . . . . . . . . . 4 1 . . Insert Component 6 | . . . . . . . . . . . . . . 2 . . . . . . . . . . . . . . . . 3 1 . . Analyze 5 | . . . . . . . . . . . . . . 4 . . . . . . . . . . . . . . . . 1 . . . Garrison Access Hacks 1 | . . . . . . . . . . . . . . . . . . . . . . . . . . . . 1 . . . . . . Seal Access 1 | . . . . . . . . . . . . . . . . . . . . . . . . . . . . 1 . . . . . . Unauthorized Hacks 47 | . 1 . . . 1 . . . . . . . . 6 . . . 4 . . . . . 3 . . 6 2 3 . 14 6 1 . Terminals 22 | . 1 . . . 1 . . . . . . . . 4 . . . . . . . . . 3 . . 6 2 . . 4 . 1 . Track 1 | . 1 . . . . . . . . . . . . . . . . . . . . . . . . . . . . . . . . . Assimilate 6 | . . . . . 1 . . . . . . . . 2 . . . . . . . . . 1 . . . . . . 1 . 1 . Botnet 4 | . . . . . . . . . . . . . . 1 . . . . . . . . . 1 . . . 1 . . 1 . . . Disrupt 3 | . . . . . . . . . . . . . . . . . . . . . . . . . . . 1 . . . 2 . . . Operators 3 | . . . . . . . . . . . . . . 1 . . . . . . . . . 1 . . . 1 . . . . . . Sabotage 5 | . . . . . . . . . . . . . . . . . . . . . . . . . . . 5 . . . . . . . Fabricators 14 | . . . . . . . . . . . . . . . . . . 1 . . . . . . . . . . 3 . 4 6 . . Report 3 | . . . . . . . . . . . . . . . . . . . . . . . . . . . . . 1 . . 2 . . Prioritize 5 | . . . . . . . . . . . . . . . . . . . . . . . . . . . . . 1 . 2 2 . . Siphon 6 | . . . . . . . . . . . . . . . . . . 1 . . . . . . . . . . 1 . 2 2 . . Repair Stations . | . . . . . . . . . . . . . . . . . . . . . . . . . . . . . . . . . . . Recycling Units 2 | . . . . . . . . . . . . . . . . . . 1 . . . . . . . . . . . . 1 . . . Tunnel 2 | . . . . . . . . . . . . . . . . . . 1 . . . . . . . . . . . . 1 . . . Scanalyzers . | . . . . . . . . . . . . . . . . . . . . . . . . . . . . . . . . . . . Garrison Access 9 | . . . . . . . . . . . . . . 2 . . . 2 . . . . . . . . . . . . 5 . . . Broadcast 2 | . . . . . . . . . . . . . . . . . . . . . . . . . . . . . . . 2 . . . Reprogram 5 | . . . . . . . . . . . . . . 1 . . . 1 . . . . . . . . . . . . 3 . . . Jam 2 | . . . . . . . . . . . . . . 1 . . . 1 . . . . . . . . . . . . . . . . Data Cores Recovered 1 | . . . . . . . . . . . . . . . . . . . . . . . . 1 . . . . . . . . . . Used . | . . . . . . . . . . . . . . . . . . . . . . . . . . . . . . . . . . . Hacking Detections 53 | . 2 . . 1 2 6 . . . . . . . 10 . . . 4 . . . . 1 5 . . 4 1 2 . 8 3 4 . Full Trace Events . | . . . . . . . . . . . . . . . . . . . . . . . . . . . . . . . . . . . Feedback Events . | . . . . . . . . . . . . . . . . . . . . . . . . . . . . . . . . . . . Feedback Blocked . | . . . . . . . . . . . . . . . . . . . . . . . . . . . . . . . . . . . Robot Schematics Acquired 10 | . . . . 1 . . . . . . . . . . . 6 . . . . . . . 1 . . . . . . 2 . . . Robots Built . | . . . . . . . . . . . . . . . . . . . . . . . . . . . . . . . . . . . Matter . | . . . . . . . . . . . . . . . . . . . . . . . . . . . . . . . . . . . Time . | . . . . . . . . . . . . . . . . . . . . . . . . . . . . . . . . . . . Total Robot Build Rating . | . . . . . . . . . . . . . . . . . . . . . . . . . . . . . . . . . . . Part Schematics Acquired 40 | . . . . . . . . . . . . . . 3 . 10 . . . . 4 . 2 5 . . . 3 2 . 10 1 . . Parts Built 24 | . . . . . . . . . . . . . . 3 . . . 2 . . . . . . . . . . 10 . 4 5 . . Matter 5243 | . . . . . . . . . . . . . . 124 . . . 498 . . . . . . . . . . 2205 . 1101 1315 . . Time 1104 | . . . . . . . . . . . . . . 20 . . . 202 . . . . . . . . . . 431 . 296 155 . . Total Part Build Rating 134 | . . . . . . . . . . . . . . 6 . . . 10 . . . . . . . . . . 53 . 30 35 . . Parts Repaired 8 | . . . . . . . . . . . . . . 1 . . . . . . . . . . . . . . . . 5 . 2 . Time 220 | . . . . . . . . . . . . . . 50 . . . . . . . . . . . . . . . . 118 . 52 . Parts Recycled . | . . . . . . . . . . . . . . . . . . . . . . . . . . . . . . . . . . . Recycled Matter . | . . . . . . . . . . . . . . . . . . . . . . . . . . . . . . . . . . . Retrieved Matter . | . . . . . . . . . . . . . . . . . . . . . . . . . . . . . . . . . . . Retrieved Components 1 | . . . . . . 1 . . . . . . . . . . . . . . . . . . . . . . . . . . . . Parts Scanalyzed 3 | . . . . . . . . . . . . . . 2 . . . . . . . . . . . . . . . . 1 . . . Part Schematics Acquired 3 | . . . . . . . . . . . . . . 2 . . . . . . . . . . . . . . . . 1 . . . Parts Damaged 1 | . . . . . . . . . . . . . . 1 . . . . . . . . . . . . . . . . . . . . Bothacking | -11 -10 -10 -10 -9 -8 -7 -7 -7 -7 -7 -6 -6 -6 -6 -6 -6 -5 -5 -5 -5 -5 -4 -4 -4 -4 -4 -4 -3 -3 -3 -2 -1 -1 -1 ------------ Run | Scr Mat Min Exi Min Mat Fac Low Low Zio Dee Pro Fac Was Fac Low Dat Pro Fac Upp Upp Zhi Pro Fac Ext Cet Arc Hub Res Arm Lab Res Acc Com Ac0 Used RIF Installer . | . . . . . . . . . . . . . . . . . . . . . . . . . . . . . . . . . . . Robots Hacked . | . . . . . . . . . . . . . . . . . . . . . . . . . . . . . . . . . . . Non-combat . | . . . . . . . . . . . . . . . . . . . . . . . . . . . . . . . . . . . Combat . | . . . . . . . . . . . . . . . . . . . . . . . . . . . . . . . . . . . Robot Hacks Applied . | . . . . . . . . . . . . . . . . . . . . . . . . . . . . . . . . . . . Relay Couplers Released 2 | . . . . . . . . . . . . . . . . . . . . . . . . . . . . . . . 2 . . . Machine Destruction 2 | . . . . . . . . . . . . . . . . . . . . . . . . . . . . . . . 2 . . . Robots Rewired 10 | . . . . . . . . . . . . . . . . . . . . . . . . 10 . . . . . . . . . . Allies Hacked 1 | . . . . . . . . . . . . . . . . . . . . . . . . . . . . . . . . . 1 . Hacks Repelled . | . . . . . . . . . . . . . . . . . . . . . . . . . . . . . . . . . . . Allies | -11 -10 -10 -10 -9 -8 -7 -7 -7 -7 -7 -6 -6 -6 -6 -6 -6 -5 -5 -5 -5 -5 -4 -4 -4 -4 -4 -4 -3 -3 -3 -2 -1 -1 -1 -------- Run | Scr Mat Min Exi Min Mat Fac Low Low Zio Dee Pro Fac Was Fac Low Dat Pro Fac Upp Upp Zhi Pro Fac Ext Cet Arc Hub Res Arm Lab Res Acc Com Ac0 Total Allies 49 | . . 2 . . 1 . . . 2 1 . . . 2 . 1 . 3 . . . . . 22 4 . . . . . 7 . 4 . Largest Group 10 | . . 2 2 . 1 1 . . 2 2 2 . . 1 1 1 . 3 . . . . . 10 8 5 5 . . . 4 . 3 . Highest-Rated Group 545 | . . 46 46 . 10 10 . . 190 190 160 . . 26 10 59 . 87 . . . . . 545 533 372 372 . . . 232 . 374 . Highest-Rated Ally 160 | . . 31 31 . 10 10 . . 95 95 95 . . 26 10 59 . 29 . . . . . 156 156 95 95 . . . 69 . 160 . Total Orders 26 | . . . . . . . . . . 5 . . . . . 2 . . . . . . . . 5 4 2 . . . . . 8 . STAY 9 | . . . . . . . . . . 3 . . . . . 2 . . . . . . . . . . 1 . . . . . 3 . ROAM 4 | . . . . . . . . . . . . . . . . . . . . . . . . . 1 1 . . . . . . 2 . FOLLOW 13 | . . . . . . . . . . 2 . . . . . . . . . . . . . . 4 3 1 . . . . . 3 . Ally Attacks 302 | . . . . . . . . . . 51 3 . . . . . . 10 . . . . . 105 34 . 20 . . . 15 . 64 . Total Damage 8126 | . . . . . . . . . . 1050 97 . . . . . . 148 . . . . . 3285 1031 . 836 . . . 723 . 956 . Kills 46 | . . . . . . . . . . 8 . . . . . . . 1 . . . . . 18 5 . 4 . . . 4 . 6 . Allies Corrupted . | . . . . . . . . . . . . . . . . . . . . . . . . . . . . . . . . . . . Allies Melted . | . . . . . . . . . . . . . . . . . . . . . . . . . . . . . . . . . . . Field Lobotomies 4 | . . . . . . . . . . 1 . . . . . 1 . . . . . . . . . . . . . . . . 2 . Intel | -11 -10 -10 -10 -9 -8 -7 -7 -7 -7 -7 -6 -6 -6 -6 -6 -6 -5 -5 -5 -5 -5 -4 -4 -4 -4 -4 -4 -3 -3 -3 -2 -1 -1 -1 ------- Run | Scr Mat Min Exi Min Mat Fac Low Low Zio Dee Pro Fac Was Fac Low Dat Pro Fac Upp Upp Zhi Pro Fac Ext Cet Arc Hub Res Arm Lab Res Acc Com Ac0 Robot Analysis Total 8 | . 2 . . . . . . . . . . . . . . . . . . . 4 . . . . . . 1 . . 1 . . . Derelict Logs Recovered 8 | . . . . . . . . 1 . . 1 . . . . . 1 . 1 2 . 2 . . . . . . . . . . . . Drone Launches . | . . . . . . . . . . . . . . . . . . . . . . . . . . . . . . . . . . . Drone Recoveries . | . . . . . . . . . . . . . . . . . . . . . . . . . . . . . . . . . . . Exploration | -11 -10 -10 -10 -9 -8 -7 -7 -7 -7 -7 -6 -6 -6 -6 -6 -6 -5 -5 -5 -5 -5 -4 -4 -4 -4 -4 -4 -3 -3 -3 -2 -1 -1 -1 ------------- Run | Scr Mat Min Exi Min Mat Fac Low Low Zio Dee Pro Fac Was Fac Low Dat Pro Fac Upp Upp Zhi Pro Fac Ext Cet Arc Hub Res Arm Lab Res Acc Com Ac0 Turns Passed 14922 | 185 1898 241 861 420 365 593 64 211 334 829 107 19 13 664 104 98 220 284 105 91 53 61 73 1187 201 94 81 180 464 399 867 497 2141 918 Spaces Moved 21591 | 105 415 116 535 191 503 1338 224 608 1125 1178 357 46 72 1463 415 112 390 529 265 290 140 210 145 987 92 52 179 444 185 475 2252 1179 3647 1327 Core 19 | 19 . . . . . . . . . . . . . . . . . . . . . . . . . . . . . . . . . . Treads 1253 | 45 365 116 535 191 . . . . . . . . . . . . . . . . . . . 1 . . . . . . . . . . Legs 91 | 41 50 . . . . . . . . . . . . . . . . . . . . . . . . . . . . . . . . . Wheels . | . . . . . . . . . . . . . . . . . . . . . . . . . . . . . . . . . . . Hover 5211 | . . . . . . . . . . . . . . . . . . . . . . . . . . . . . . . . 237 3647 1327 Flight 15017 | . . . . . 503 1338 224 608 1125 1178 357 46 72 1463 415 112 390 529 265 290 140 210 145 986 92 52 179 444 185 475 2252 942 . . Fastest Speed 6 | 50 120 160 160 160 25 18 21 15 25 6 6 21 15 16 16 23 23 16 25 28 28 28 31 31 71 71 31 25 25 22 19 18 17 17 Average Speed 34 | 124 155 160 160 160 25 25 24 24 25 20 20 22 17 28 21 23 24 24 26 28 28 28 31 58 71 71 39 29 25 22 20 20 25 31 Slowest Speed 160 | 160 160 160 160 160 28 28 25 25 25 21 25 25 21 34 23 23 27 90 28 28 28 31 31 145 71 71 71 31 28 25 22 34 142 118 Overloaded Moves 716 | . . . . . . 10 . 20 . 14 22 . 52 6 76 . . 67 . . . . . . . . . 84 . . . . 40 325 Propulsion Burnouts 1 | . . . . . . . . . . . . . . . . . . . . . . . . . . . . . . . . . . 1 Robots Hopped 113 | . . . . . 10 8 . . . . 1 . . 9 4 . 3 1 . 1 . 1 . 16 . . 2 6 . . 46 5 . . Cave-ins Triggered . | . . . . . . . . . . . . . . . . . . . . . . . . . . . . . . . . . . . Teleports 3 | . . . . . . . . . . . . . . . . . . . . . . . . . . . . . 1 . . . 1 1 Exploration Rate (%) 49 | 5 34 40 89 27 37 39 42 77 83 85 55 2 61 44 67 77 62 12 49 65 60 44 5 80 62 58 23 20 13 98 48 26 77 62 Regions Visited 34 Branch Regions 23 Pre-discovered Areas 14 | . . 1 1 . . . . . 3 . . . . . . 1 1 1 . 1 3 1 . . . . . . . . 1 . . . Known Exits Taken 11 | . . . . . . 1 . . . . . . . 1 . . 1 1 . . . 1 1 . . . 1 1 . 1 1 1 . . Unknown Exits Taken 21 | 1 1 1 1 1 1 . 1 1 1 1 1 . . . 1 1 . . 1 1 1 . . 1 1 1 . . 1 . . . 1 . Scrap Searched 15 | . . . . 1 . . 2 4 4 . 1 . . . 1 . 1 . . . . 1 . . . . . . . . . . . . Spaces Dug 126 | . 1 . . . 43 9 . 5 . . . . . 9 1 . . 4 . 1 . . . . . . 3 4 3 . 23 9 9 2 Terrain Destroyed 133 | . 1 . . . 43 9 . 5 . . . . . 9 1 . 7 4 . 1 . . . . . . 3 4 3 . 23 9 9 2 Melee 95 | . . . . . 13 9 . 5 . . . . . 9 1 . . 4 . 1 . . . . . . 3 4 3 . 23 9 9 2 Projectile 2 | . 1 . . . 1 . . . . . . . . . . . . . . . . . . . . . . . . . . . . . AOE 36 | . . . . . 29 . . . . . . . . . . . 7 . . . . . . . . . . . . . . . . . Terrain Rammed . | . . . . . . . . . . . . . . . . . . . . . . . . . . . . . . . . . . . Walls Destroyed . | . . . . . . . . . . . . . . . . . . . . . . . . . . . . . . . . . . . Machines Disabled . | . . . . . . . . . . . . . . . . . . . . . . . . . . . . . . . . . . . Actions | -11 -10 -10 -10 -9 -8 -7 -7 -7 -7 -7 -6 -6 -6 -6 -6 -6 -5 -5 -5 -5 -5 -4 -4 -4 -4 -4 -4 -3 -3 -3 -2 -1 -1 -1 --------- Run | Scr Mat Min Exi Min Mat Fac Low Low Zio Dee Pro Fac Was Fac Low Dat Pro Fac Upp Upp Zhi Pro Fac Ext Cet Arc Hub Res Arm Lab Res Acc Com Ac0 Total 28063 | 133 1564 169 543 268 699 1478 232 637 1176 1715 388 54 71 1682 423 154 509 672 299 298 152 210 172 1576 225 101 185 477 591 717 2555 1413 4791 1734 Wait 4981 | . 1048 47 . 30 160 49 5 13 34 479 30 . . 124 10 18 122 124 35 7 . . 26 522 125 39 3 25 369 177 203 97 925 135 Move 21349 | 104 414 115 534 190 485 1322 223 607 1124 1177 354 46 71 1444 407 111 383 526 264 287 139 207 144 957 91 51 174 431 184 474 2168 1169 3646 1326 Hop 95 | . . . . . 7 7 . . . . 1 . . 9 3 . 3 1 . 1 . 1 . 13 . . 2 6 . . 37 4 . . Pick Up 158 | 3 15 1 4 8 . 6 . . 2 7 . 4 . 9 1 5 . . . . 1 . . 5 . . . 2 9 5 16 15 16 24 Fast Attach 144 | 9 4 . . 1 7 13 1 . 6 5 1 2 . 16 . . . 6 . . 5 . . 8 1 2 . 3 2 2 4 6 20 20 Attach 106 | . 2 . . 5 7 1 1 . 2 3 . . . 6 . 3 . 1 . . 2 1 2 3 2 . 1 . 5 3 13 6 6 31 Detach 73 | 2 5 . . . . 3 2 . 3 1 . . . 9 . 1 . 1 . 1 1 . . 5 1 2 1 . 3 1 9 7 6 9 Swap 83 | 1 13 6 . 3 3 3 . . 1 4 . . . 3 . 3 . 1 . . 1 . . 1 . . . . 3 3 6 10 13 5 Drop 175 | . 8 . 5 10 12 17 . . 4 13 1 2 . 17 1 4 . 5 . 1 3 1 . 6 2 . 1 2 5 3 6 10 26 10 Fire 127 | 12 50 . . 20 4 . . . . 26 . . . 2 . 9 1 . . . . . . . . . . . . . . . 3 . Melee 578 | . . . . . 14 57 . 17 . . 1 . . 20 1 . . 7 . 1 . . . 1 3 7 3 8 11 49 58 53 93 174 Ram . | . . . . . . . . . . . . . . . . . . . . . . . . . . . . . . . . . . . Kick 2 | 2 . . . . . . . . . . . . . . . . . . . . . . . . . . . . . . . . . . Crush 6 | . 5 . . 1 . . . . . . . . . . . . . . . . . . . . . . . . . . . . . . Escape Stasis 149 | . . . . . . . . . . . . . . 23 . . . . . . . . . 18 . . . . . . 35 36 37 . Rewire 37 | . . . . . . . . . . . . . . . . . . . . . . . . 37 . . . . . . . . . . Trap . | . . . . . . . . . . . . . . . . . . . . . . . . . . . . . . . . . . . Miscellaneous . | . . . . . . . . . . . . . . . . . . . . . . . . . . . . . . . . . . . Route ------- -11/Scrapyard -10/Materials -10/Mines -10/Exiles (discovered 2 exits: *Min x2) -9/Mines -8/Materials -7/Factory (discovered 2 exits: [*Sto] / *Low) -7/Lower Caves -7/Lower Caves (discovered 2 exits: [*Fac] / *Zio) -7/Zion (discovered 2 exits: [*Dee] / [*Pro]) -7/Deep Caves -6/Proximity Caves -6/Factory -6/Waste -6/Factory (discovered 6 exits: *Fac x4 / *Low x2) -6/Lower Caves -6/Data Miner -5/Proximity Caves -5/Factory (discovered 2 exits: *Upp x2) -5/Upper Caves -5/Upper Caves (discovered 2 exits: *Fac / *Zhi) -5/Zhirov -4/Proximity Caves -4/Factory -4/Extension (discovered 3 exits: *Res x2 / *Cet) -4/Cetus -4/Archives -4/Hub_04(d) (discovered 4 exits: *Res x4) -3/Research (discovered 6 exits: Res x3 / *Arm / Tes x2) -3/Armory -3/Lab -2/Research (discovered 5 exits: *Acc x3 / Qua x2) -1/Access (discovered 2 exits: Sur / *Com) -1/Command -1/Access_0 0b11 Command History --------- Turn | Location | Event 2 | -11/Scrapyard | Discovered new exit (range 16) 186 | -11/Scrapyard | Entered Materials 311 | -10/Materials | Build established: Mutant 2046 | -10/Materials | Discovered new exit (range 18) 2084 | -10/Materials | Entered Mines 2085 | -10/Mines | Learned location of Storage (-7) 2186 | -10/Mines | Received a Rocket Launcher from a helpful Derelict 2314 | -10/Mines | Deemed a non-threat by the Exiles lab entrance 2314 | -10/Mines | Discovered new exit (range 5) 2325 | -10/Mines | Entered Exiles 2325 | -10/Exiles | Accompanied by 2 allies 2346 | -10/Exiles | Discovered new exit (range 15) 2355 | -10/Exiles | Led the pair of lost Derelicts to a safe place 2365 | -10/Exiles | Met 8R-AWN 2391 | -10/Exiles | Met EX-HEX 2450 | -10/Exiles | Met EX-DEC 2477 | -10/Exiles | Learned location of Zion (-7) 2578 | -10/Exiles | Met EX-BIN 2597 | -10/Exiles | Aligned with FarCom system 2599 | -10/Exiles | Given EX-Vault access code 2639 | -10/Exiles | Opened EX-Vault 2650 | -10/Exiles | Found Field Lobotomy Kit 2686 | -10/Exiles | Warned to stay clear of 0b10 Research branches 2959 | -10/Exiles | Visited The Gauntlet 3167 | -10/Exiles | Discovered new exit (range 12) 3186 | -10/Exiles | Left Exiles lab with Field Lobotomy Kit 3186 | -10/Exiles | Entered Mines 3267 | -9/Mines | Discovered new exit (range 7) 3393 | -9/Mines | Excavation squad dispatched 3393 | -9/Mines | A large section of the Mines collapsed 3606 | -9/Mines | Entered Materials 3606 | -8/Materials | Evolved 4 slots: Propulsion x4 3887 | -8/Materials | Build established: Scavenger-Sprinter 3949 | -8/Materials | Discovered new exit (range 16) 3971 | -8/Materials | Entered Factory 3971 | -7/Factory | Accompanied by 1 ally 3971 | -7/Factory | Evolved 2 slots: Utility x2 4111 | -7/Factory | Discovered new exit (range 3) 4553 | -7/Factory | Discovered new exit (range 10) 4556 | -7/Factory | Identified exit to Lower Caves 4564 | -7/Factory | Entered Lower Caves 4623 | -7/Lower Caves | Discovered new exit (range 18) 4628 | -7/Lower Caves | Entered another Lower Caves area 4638 | -7/Lower Caves | Discovered new exit (range 10) 4651 | -7/Lower Caves | Learned Factory terminal intel 4800 | -7/Lower Caves | Spotted B-75 Beast 4814 | -7/Lower Caves | Build established: Sprinter 4820 | -7/Lower Caves | Discovered new exit (range 13) 4836 | -7/Lower Caves | Encountered a Warlord checkpoint 4839 | -7/Lower Caves | Entered Zion 4846 | -7/Zion | Discovered new exit (range 19) 4866 | -7/Zion | System corruption cleaned by Quarantine Array 4885 | -7/Zion | Acquired unknown access codes intercepted by a Zionite 4911 | -7/Zion | Opened final containment barrier to the Deep Caves 4934 | -7/Zion | Given A8's code to call for help 4974 | -7/Zion | Learned location of Recycling (-7) 5010 | -7/Zion | Learned location of Quarantine (-2) 5150 | -7/Zion | Enhanced Grunt warped into view, answering call for help 5153 | -7/Zion | Discovered new exit (range 3) 5153 | -7/Zion | Saw the warning signs outside the Deep Caves entrance 5156 | -7/Zion | Enhanced Grunt warped into view, answering call for help 5173 | -7/Zion | Entered Deep Caves 5173 | -7/Deep Caves | Accompanied by 2 allies 5283 | -7/Deep Caves | Attacked by Z-Imprinter 5298 | -7/Deep Caves | Assimilated BI-MOM(z) with FLK Orb 5311 | -7/Deep Caves | Allies destroyed Z-Imprinter 5317 | -7/Deep Caves | Found Prototype Protection 5317 | -7/Deep Caves | Identified Zio. Weapon Casing 5466 | -7/Deep Caves | Z-Facility disabled 5694 | -7/Deep Caves | Build established: Scavenger-Sprinter 5832 | -7/Deep Caves | Discovered new exit (range 6) 5923 | -7/Deep Caves | Spotted as-36200 5924 | -7/Deep Caves | Found XL Autogun Array 6002 | -7/Deep Caves | Entered Proximity Caves 6002 | -6/Proximity Caves | Accompanied by 2 allies 6069 | -6/Proximity Caves | Spotted B-75 Beast 6084 | -6/Proximity Caves | Learned Factory non-interactive machine intel 6105 | -6/Proximity Caves | Discovered new exit (range 12) 6109 | -6/Proximity Caves | Entered Factory 6109 | -6/Factory | Evolved 2 slots: Utility x2 6110 | -6/Factory | Loaded intel: 218 non-interactive machine locations 6111 | -6/Factory | Loaded intel: 20 terminal locations 6128 | -6/Factory | Sucked down chute 6128 | -6/Factory | Entered Waste 6132 | -6/Waste | Spotted C-40 Crusher 6133 | -6/Waste | Spotted C-40 Crusher 6134 | -6/Waste | Spotted C-40 Crusher 6135 | -6/Waste | Spotted C-40 Crusher 6136 | -6/Waste | Spotted C-40 Crusher 6139 | -6/Waste | Discovered new exit (range 10) 6141 | -6/Waste | Entered Factory 6227 | -6/Factory | Discovered new exit (range 12) 6491 | -6/Factory | First assault squad dispatched 6504 | -6/Factory | Discovered new exit (range 20) 6542 | -6/Factory | Identified exit to Factory 6598 | -6/Factory | Fabricated Plasma Cutter (x3) 6618 | -6/Factory | Spotted B-75 Beast 6677 | -6/Factory | Identified exit to Lower Caves 6744 | -6/Factory | Repaired Broken Biomechanical Wings 6805 | -6/Factory | Entered Lower Caves 6805 | -6/Lower Caves | Accompanied by 1 ally 6824 | -6/Lower Caves | Encountered a Warlord checkpoint 6906 | -6/Lower Caves | A Derelict revealed a hidden shortcut to meet someone special 6909 | -6/Lower Caves | Entered Data Miner 6909 | -6/Data Miner | Discovered new exit (range 6) 6913 | -6/Data Miner | Met Data Miner 6918 | -6/Data Miner | Learned location of Section 7 (-2) 6918 | -6/Data Miner | Acquired the access code to Warlord's prototype stash 6921 | -6/Data Miner | Received God Mode back door access code from Data Miner 6931 | -6/Data Miner | Assimilated Data Miner with FLK Orb 6994 | -6/Data Miner | Destroyed Data Miner 6997 | -6/Data Miner | Found Prototype Hackware 7002 | -6/Data Miner | Found Prototype Hackware 7004 | -6/Data Miner | Found Prototype Hackware 7005 | -6/Data Miner | Found Prototype Hackware 7007 | -6/Data Miner | Entered Proximity Caves 7022 | -5/Proximity Caves | Build established: Sprinter 7224 | -5/Proximity Caves | Discovered exit to Factory (range 11) 7227 | -5/Proximity Caves | Entered Factory 7227 | -5/Factory | Evolved 2 slots: Utility x2 7240 | -5/Factory | Identified Quantum Router 7241 | -5/Factory | Identified System Mapper 7380 | -5/Factory | Fabricated Biomechanical Wings? 7394 | -5/Factory | Garrison activated, responded to threat 7419 | -5/Factory | Fabricated Biomechanical Wings? 7423 | -5/Factory | Local fabrication network quarantined 7459 | -5/Factory | Identified exit to Upper Caves 7511 | -5/Factory | Entered Upper Caves 7515 | -5/Upper Caves | Spotted B-75 Beast 7523 | -5/Upper Caves | Learned location of 1 exit from Factory 7545 | -5/Upper Caves | Build established: Hacker-Sprinter 7615 | -5/Upper Caves | Discovered new exit (range 3) 7616 | -5/Upper Caves | Entered another Upper Caves area 7620 | -5/Upper Caves | Discovered new exit (range 8) 7626 | -5/Upper Caves | Learned location of 1 exit from Proximity Caves 7627 | -5/Upper Caves | Learned location of Warlord (-4) 7634 | -5/Upper Caves | Attracted the attention of an 0b10 checkpoint 7640 | -5/Upper Caves | Spotted B-75 Beast 7704 | -5/Upper Caves | Discovered new exit (range 14) 7707 | -5/Upper Caves | Entered Zhirov 7707 | -5/Zhirov | Discovered new exit (range 3) 7735 | -5/Zhirov | Found Alien Artifact 7735 | -5/Zhirov | Identified Integrated Dissipator 7735 | -5/Zhirov | Installed Integrated Dissipator, increased core heat dissipation (+20) 7743 | -5/Zhirov | Found Alien Artifact 7750 | -5/Zhirov | Learned location of Testing (-3) 7750 | -5/Zhirov | Learned location of Command (-1) 7760 | -5/Zhirov | Entered Proximity Caves 7761 | -4/Proximity Caves | Identified exit to Factory 7770 | -4/Proximity Caves | Attracted the attention of an 0b10 checkpoint 7798 | -4/Proximity Caves | Learned location of Armory (-3) 7810 | -4/Proximity Caves | Learned Research stockpile data 7821 | -4/Proximity Caves | Entered Factory 7821 | -4/Factory | Evolved 2 slots: Utility x2 7822 | -4/Factory | Identified exit to Extension 7828 | -4/Factory | Identified Deep Network Scanner 7829 | -4/Factory | Identified Ghost Barrier 7894 | -4/Factory | Entered Extension 7905 | -4/Extension | Rescued a captive Derelict 7906 | -4/Extension | Rescued a captive Derelict 7994 | -4/Extension | Rescued a captive Derelict 8022 | -4/Extension | Build established: Wizard-Sprinter 8077 | -4/Extension | Rescued a captive Derelict 8078 | -4/Extension | Rescued a captive Derelict 8094 | -4/Extension | Rescued a captive Derelict 8095 | -4/Extension | Rescued a captive Derelict 8105 | -4/Extension | Rescued a captive Derelict 8109 | -4/Extension | Rescued A7 8517 | -4/Extension | Central database locked down 8518 | -4/Extension | Build established: Wizard-Mutant 8648 | -4/Extension | Spotted B-86 Titan 8671 | -4/Extension | Allies destroyed B-86 Titan 8758 | -4/Extension | Spotted B-86 Titan 8787 | -4/Extension | Allies destroyed B-86 Titan 8891 | -4/Extension | Rescued a captive Derelict 8896 | -4/Extension | Identified exit to Research 9016 | -4/Extension | Rescued a captive Derelict 9064 | -4/Extension | Discovered new exit (range 6) 9081 | -4/Extension | Entered Cetus 9081 | -4/Cetus | Accompanied by 8 allies (A7) 9086 | -4/Cetus | Acquired a Cetus Manufacturing Module code from A7 9099 | -4/Cetus | Spotted Cetus Guard 9099 | -4/Cetus | Spotted Cetus Guard 9106 | -4/Cetus | Spotted Cetus Guard 9110 | -4/Cetus | Allies destroyed Cetus Guard 9113 | -4/Cetus | Allies destroyed Cetus Guard 9117 | -4/Cetus | Allies destroyed Cetus Guard 9128 | -4/Cetus | Destroyed A7 9130 | -4/Cetus | Extracted ID and sensor layout for unrecognized location from A7's data core 9167 | -4/Cetus | Started Cetus Manufacturing Module 9185 | -4/Cetus | Discovered new exit (range 20) 9192 | -4/Cetus | Manufactured an Enhanced Grunt 9217 | -4/Cetus | Manufactured an Enhanced Grunt 9242 | -4/Cetus | Manufactured an Enhanced Grunt 9267 | -4/Cetus | Manufactured an Enhanced Grunt 9282 | -4/Cetus | Entered Archives 9282 | -4/Archives | Accompanied by 5 allies 9343 | -4/Archives | Met Zhirov 9349 | -4/Archives | Reinforcements dispatched to Archives 9350 | -4/Archives | Discovered new exit (range 15) 9376 | -4/Archives | Entered Hub_04(d) 9376 | -4/Hub_04(d) | Accompanied by 5 allies 9401 | -4/Hub_04(d) | Network Hub disabled 9404 | -4/Hub_04(d) | Network Hub disabled 9414 | -4/Hub_04(d) | Network Hub disabled 9443 | -4/Hub_04(d) | Network Hub disabled 9457 | -4/Hub_04(d) | Entered Research 9457 | -3/Research | Evolved 2 slots: Utility x2 9468 | -3/Research | Identified exit to Armory 9468 | -3/Research | Identified exit to Testing 9468 | -3/Research | Identified exit to Research 9479 | -3/Research | Spotted B-86 Titan 9637 | -3/Research | Entered Armory 9679 | -3/Armory | Fabricated Exp. Utility Shielding (x1) 9700 | -3/Armory | Build established: Wizard-Sprinter 9717 | -3/Armory | Fabricated Biomechanical Wings (x1) 9768 | -3/Armory | Fabricated Exp. Shield Generator (x1) 9807 | -3/Armory | Fabricated Exp. Propulsion Shielding (x1) 9846 | -3/Armory | Fabricated Biomechanical Wings (x1) 9884 | -3/Armory | Fabricated Biomechanical Wings (x1) 9922 | -3/Armory | Fabricated Biomechanical Wings (x1) 9961 | -3/Armory | Fabricated Biomechanical Wings (x1) 9999 | -3/Armory | Fabricated Biomechanical Wings (x1) 10031 | -3/Armory | Local fabrication network quarantined 10037 | -3/Armory | Fabricated Biomechanical Wings (x1) 10046 | -3/Armory | Identified Transdimensional Reconstructor 10046 | -3/Armory | Warped through subspace to slip node 10046 | -3/Armory | Discovered new exit (range 1) 10101 | -3/Armory | Entered Lab 10101 | -3/Lab | Discovered exit to Research (range 9) 10104 | -3/Lab | Hidden lab's door opened automatically 10104 | -3/Lab | Sensor layout match revealed 10139 | -3/Lab | Gained access to the hidden lab's interior 10147 | -3/Lab | Found Alien Artifact 10147 | -3/Lab | Identified Core Expander 10147 | -3/Lab | Installed Core Expander, added new Propulsion slot 10160 | -3/Lab | Found Alien Artifact 10160 | -3/Lab | Identified Integrated Mediator 10160 | -3/Lab | Installed Integrated Mediator, increased core attachment efficiency. 10185 | -3/Lab | Found Transdimensional Reconstructor 10231 | -3/Lab | Found Prototype Protection 10237 | -3/Lab | Found Quantum Router 10244 | -3/Lab | Identified Med. Regenerative Plating 10254 | -3/Lab | Found Alien Artifact 10464 | -3/Lab | Found Prototype Energy Cannon 10500 | -3/Lab | Entered Research 10500 | -2/Research | Evolved 2 slots: Propulsion x1, Utility x1 10512 | -2/Research | Found Prototype Device 10546 | -2/Research | Identified Exp. Actuator Array 10567 | -2/Research | Identified Core Reset Matrix 10567 | -2/Research | Identified Potential Cannon 10593 | -2/Research | Found Exp. Melee Analysis Suite 10695 | -2/Research | Spotted B-90 Cyclops 10725 | -2/Research | Identified exit to Access 10752 | -2/Research | Found Enh. Force Lance 10764 | -2/Research | Spotted B-90 Cyclops 10777 | -2/Research | Identified exit to Quarantine 10935 | -2/Research | Spotted B-90 Cyclops 10990 | -2/Research | Fabricated Femtoactuators? 11011 | -2/Research | Fabricated Imp. Fusion Compressor? 11054 | -2/Research | Repaired Exp. Utility Shielding? 11056 | -2/Research | Fabricated Exp. Melee Analysis Suite? 11086 | -2/Research | Garrison activated, responded to threat 11125 | -2/Research | Repaired Exp. Propulsion Shielding 11144 | -2/Research | Repaired Mic. Fission Core 11173 | -2/Research | Repaired Biomechanical Wings? 11250 | -2/Research | First assault squad dispatched 11260 | -2/Research | Repaired Enh. Force Lance 11276 | -2/Research | Fabricated Imp. Fusion Compressor (x1) 11367 | -2/Research | Entered Access 11367 | -1/Access | Evolved 2 slots: Weapon x2 11402 | -1/Access | Fabricated Plasma Lance (x1) 11405 | -1/Access | Fabricated Plasma Lance? 11433 | -1/Access | Fabricated Plasma Lance (x1) 11441 | -1/Access | Fabricated Plasma Lance (x1) 11464 | -1/Access | Fabricated Exp. Melee Analysis Suite (x1) 11599 | -1/Access | Identified exit to Command 11643 | -1/Access | Identified exit to Surface 11864 | -1/Access | Entered Command 12099 | -1/Command | Spotted B-99 Colossus 12100 | -1/Command | Build established: Machinist-Sprinter 12173 | -1/Command | Destroyed 9 combat bots 12184 | -1/Command | Repaired Exp. Utility Shielding 12210 | -1/Command | Repaired Exp. Propulsion Shielding 12321 | -1/Command | Spotted M Guard 12321 | -1/Command | Spotted M Guard 12321 | -1/Command | Spotted Combat Programmer 12331 | -1/Command | Assimilated Combat Programmer with FLK Orb 12335 | -1/Command | Spotted Combat Programmer 12338 | -1/Command | Assimilated Combat Programmer with FLK Orb 12369 | -1/Command | Found Corrupted Prototype Device 12412 | -1/Command | Met MAIN.C 12413 | -1/Command | 0b10 Conduit disabled 12427 | -1/Command | Destroyed MAIN.C Shell 12428 | -1/Command | MAIN.C activated Command garrisons 12441 | -1/Command | Destroyed MAIN.C 12448 | -1/Command | Found Prototype Protection 12448 | -1/Command | Identified Exp. Powered Armor 12451 | -1/Command | Found Exp. Powered Armor 12452 | -1/Command | Found Beam Splitter 13105 | -1/Command | All MAIN.C guards destroyed 13206 | -1/Command | Spotted Alpha 7 13212 | -1/Command | Destroyed Alpha 7 13464 | -1/Command | Identified AEGIS Remote Shield 13855 | -1/Command | Found Centrium Heavy Armor Plating 14000 | -1/Command | Warped through subspace to slip node 14000 | -1/Command | Discovered new exit (range 4) 14005 | -1/Command | Entered Access_0 14006 | -1/Access_0 | Met Architect 14021 | -1/Access_0 | Architect warped through subspace 14039 | -1/Access_0 | Destroyed A8 14050 | -1/Access_0 | Architect warped through subspace 14088 | -1/Access_0 | Architect warped through subspace 14106 | -1/Access_0 | Architect warped through subspace 14124 | -1/Access_0 | A6 warped into view 14129 | -1/Access_0 | Architect warped through subspace 14149 | -1/Access_0 | Destroyed A6 14168 | -1/Access_0 | Found Exp. Phase Shifter 14184 | -1/Access_0 | Architect warped through subspace 14220 | -1/Access_0 | Found Exp. Weapon Cycler 14227 | -1/Access_0 | Architect warped through subspace 14253 | -1/Access_0 | Subspace Access Node disabled 14262 | -1/Access_0 | A5 warped into view 14272 | -1/Access_0 | Destroyed A5 14291 | -1/Access_0 | Architect warped through subspace 14309 | -1/Access_0 | Found Med. Regenerative Plating 14355 | -1/Access_0 | Architect warped through subspace 14368 | -1/Access_0 | Found Exp. Powered Armor 14428 | -1/Access_0 | Architect warped through subspace 14453 | -1/Access_0 | Lost 6 parts (3n3u) 14477 | -1/Access_0 | Architect warped through subspace 14488 | -1/Access_0 | Found Exp. Target Analyzer 14526 | -1/Access_0 | Architect warped through subspace 14572 | -1/Access_0 | Architect warped through subspace 14589 | -1/Access_0 | Subspace Access Node disabled 14591 | -1/Access_0 | A4 warped into view 14620 | -1/Access_0 | Architect warped through subspace 14629 | -1/Access_0 | Lost 3 parts (2n1u) 14635 | -1/Access_0 | Destroyed A4 14642 | -1/Access_0 | Found Prototype Protection 14644 | -1/Access_0 | Identified Hvy. Regenerative Plating 14667 | -1/Access_0 | Architect warped through subspace 14715 | -1/Access_0 | Architect warped through subspace 14761 | -1/Access_0 | Architect warped through subspace 14797 | -1/Access_0 | Architect warped through subspace 14814 | -1/Access_0 | Found Prototype Device 14814 | -1/Access_0 | Identified Desublimator 14845 | -1/Access_0 | Found Alien Artifact 14854 | -1/Access_0 | Architect warped through subspace 14876 | -1/Access_0 | Core integrity fell below 50% 14893 | -1/Access_0 | Found Exp. Powered Armor 14916 | -1/Access_0 | Identified Hpw. Transdimensional Reconstructor 14916 | -1/Access_0 | Warped through subspace to slip node 14916 | -1/Access_0 | Discovered exit to Surface (range 8) 14923 | *** | Establishing 0b11! Last Messages --------------- 14903_ Cmb. Antigrav System destroyed. 14903_ Critical hit (Burn: +37). 14906_ Penetrated by Quantum Shear. 14906_ Exp. Powered Armor severed. 14906_ Antimatter Reactor destroyed. 14907_ Acquired Exp. Powered Armor. 14908_ Quantum Shear penetrates Wall. 14908_ Penetrated by Quantum Shear. 14908_ Plasma Lance destroyed. 14910_ PSA/LYOS Z0BZ|YEGPYKII:A6HK 14911_ Quantum Shear penetrates Wall. 14913_ Penetrated by Quantum Shear. 14914_ Cmb. Antigrav System destroyed. 14916_ Penetrated by HV Slug. 14916_ HV Slug penetrates Wall. 14916_ Penetrated by HV Slug. 14916_ Cmb. Antigrav System destroyed. 14916_ Identified Hpw. Transdimensional Reconstructor. 14916_ Warped through subspace, drawn to slip node. 14916_ EXIT=FOUND: SURFACE Map ----- +----------------------------------------------------+ | | | | | | | | | | | | | | | | | | | | | | | | | | | | | | | | | ?????????????????????????????????????????????????? | | ?????????????????????????????????????????????????? | | ?????????????????????????????????????????????????? | | ?????????????????????????????????????????????????? | | ?????????????????????????????????????????????????? | | ?????????????????????????????????????????????????? | | ????????????????????????###??????????????????????? | | ???????????????????????## ##?????????????????????? | | ???????????????????????# #?????????????????????? | | ???????????????????????# @ #?????????????????????? | | ??????????????????????## #?????????????????????? | | ??????????????????????# #?????????????????????? | | ??????????????????????# ##?????????????????????? | | ??????????????????????## #?????????????????????? | | ??????????????????????# #?????????????????????? | | ??????????????????????# ##?????????????????????? | | ??????????????????????# < #?????????????????????? | | ??????????????????????# ##?????????????????????? | | ??????????????????????## #??????????????????????? | | ???????????????????????####??????????????????????? | | ?????????????????????????????????????????????????? | | ?????????????????????????????????????????????????? | | ?????????????????????????????????????????????????? | | ?????????????????????????????????????????????????? | | ?????????????????????????????????????????????????? | | ?????????????????????????????????????????????????? | | ?????????????????????????????????????????????????? | | ?????????????????????????????????????????????????? | | ?????????????????????????????????????????????????? | | ?????????????????????????????????????????????????? | | ?????????????????????????????????????????????????? | | ?????????????????????????????????????????????????? | | ?????????????????????????????????????????????????? | | ?????????????????????????????????????????????????? | +----------------------------------------------------+ Best States ------------- Heat Dissipation 110 Energy Generation 44 Energy Capacity 825 Matter Stores 300 Matter Capacity 300 Sight Range 20 Robot Scan Range 16 Terrain Scan Range 16 Terrain Scan Density 85 Power Amplification 80 Additional Mass Support 25 Armor Coverage 1400 Propulsion Shielding 90 Utility Shielding 90 Weapon Shielding 100 Melee Speed Boost 50 Phase Shifting 20 Evasion (%) 89 Targeting Accuracy 5 Melee Accuracy 36 Launcher Accuracy 20 Target Analysis 10 Armor Integrity Analysis 30 Recoil Reduction 2 Salvage Targeting 4 Offensive Hacking 95 Defensive Hacking 70 Item Schematics ----------------- Plasma Cutter | -6/Factory | Hacked Biomechanical Wings | -6/Factory | Scanalyzed Lyr. Medium Armor Plating | -6/Factory | Scanalyzed Combat Drone Bay | -6/Data Miner | Free Lgt. Regenerative Plating | -6/Data Miner | Free Exp. Flexi-carbon Leg | -6/Data Miner | Free Exp. Sensor Array | -6/Data Miner | Free Exp. Targeting Computer | -6/Data Miner | Free Exp. Transmission Jammer | -6/Data Miner | Free Exp. ECM Suite | -6/Data Miner | Free Cloaking Device | -6/Data Miner | Free Mni. Smartbomb Launcher | -6/Data Miner | Free Plasma Sword | -6/Data Miner | Free Assault Drone Bay | -5/Zhirov | Free Exp. Heat Sink | -5/Zhirov | Free Exp. Optical Array | -5/Zhirov | Free Imp. Arc Thrower | -5/Zhirov | Free Exp. Utility Shielding | -4/Factory | Hacked Exp. Propulsion Shielding | -4/Factory | Hacked Adv. Force Booster | -4/Extension | Hacked Arm. Heavy Treads | -4/Extension | Hacked Adv. Recalibrator | -4/Extension | Hacked Imp. System Restoration Module | -4/Extension | Hacked Impulse Thruster Array | -4/Extension | Hacked Exp. Shield Generator | -3/Research | Hacked Enh. Nova Cannon | -3/Research | Hacked Stasis Projector | -3/Research | Hacked Antimissile System | -3/Armory | Hacked Adv. Heavy Treads | -3/Armory | Hacked Femtoactuators | -2/Research | Hacked Exp. Melee Analysis Suite | -2/Research | Hacked Exp. Actuator Array | -2/Research | Hacked Adv. Melee Analysis Suite | -2/Research | Scanalyzed Centrium Leg | -2/Research | Hacked Imp. Fusion Compressor | -2/Research | Hacked Plasma Lance | -2/Research | Hacked Exp. Weapon Cycler | -2/Research | Hacked Imp. Quantum Reactor | -2/Research | Hacked Exp. Q-thruster | -2/Research | Hacked Biometal Heavy Treads | -1/Access | Hacked Robot Schematics ------------------ O-16 Technician | -9/Mines | Hacked S-27 Virus | -6/Data Miner | Free G-50 Soldier | -6/Data Miner | Free G-67 Veteran | -6/Data Miner | Free X-72 Disruptor | -6/Data Miner | Free P-70 Sage | -6/Data Miner | Free I-36 Angel | -6/Data Miner | Free O-32 Director | -4/Extension | Hacked A-27 Freighter | -2/Research | Hacked B-74 Champion | -2/Research | Hacked Fabricated ------------ Plasma Cutter | x3 | -6/Factory Biomechanical Wings | x1 | -5/Factory Biomechanical Wings | x1 | -5/Factory Exp. Utility Shielding | x1 | -3/Armory Biomechanical Wings | x1 | -3/Armory Exp. Shield Generator | x1 | -3/Armory Exp. Propulsion Shielding | x1 | -3/Armory Biomechanical Wings | x1 | -3/Armory Biomechanical Wings | x1 | -3/Armory Biomechanical Wings | x1 | -3/Armory Biomechanical Wings | x1 | -3/Armory Biomechanical Wings | x1 | -3/Armory Biomechanical Wings | x1 | -3/Armory Femtoactuators | x1 | -2/Research Imp. Fusion Compressor | x1 | -2/Research Exp. Melee Analysis Suite | x1 | -2/Research Imp. Fusion Compressor | x1 | -2/Research Plasma Lance | x1 | -1/Access Plasma Lance | x1 | -1/Access Plasma Lance | x1 | -1/Access Plasma Lance | x1 | -1/Access Exp. Melee Analysis Suite | x1 | -1/Access Alien Tech Used ----------------- Integrated Dissipator Transdimensional Reconstructor Core Expander Integrated Mediator High-powered Transdimensional Reconstructor Achievements -------------- None Challenges ------------ None Game ------ Seed SystemSeismicAirjet Manual? 0 Play Time 03:45:15 Cumulative 2003.0 hours Start 2021.07.23 @ 00:29:19 End 2021.07.23 @ 04:34:33 Sessions 1 Manual Loads 0 Difficulty Rogue Special Mode None Game No. 2602 Rogue 2594 Adventurer 0 Explorer 8 Win Type 1 Total 221 Types 42/30/83/3/3/5/52/2/1 Lore% 99 Gallery% 99 Achievement% 100 Wizard Run 0 Options --------- ASCII 0 Keyboard 1 Movement Vi Keybinds 1 Fullscreen 1 Font 18/SmallcapsGlow Map View 76x50 Tactical HUD 1 Map Filters NONE Filters NONE Steam 1 RUN: 89511a5c-4d0e-47e8-88d1-81a52b392715